Workbook

Sheet UBF
A1: MINISTÉRIO DA INTEGRAÇÃO E DO DESENVOLVIMENTO REGIONAL | J1: BDI serviç | K1: 1.2591
A2: COMPANHIA DE DESENVOLVIMENTO DOS VALES DO SÃO FRANCISCO E DO PARNAÍBA | J2: BDI fornec. | K2: 1.136
A3: SEDE
A4: PLANILHA ORÇAMENTÁRIA DE ESTIMATIVA GERAL PARA O DISTRITO FEDERAL | H4: Base SINAPI-DF 03-2025 ORSE 02-2025
H5: Data: Maio - 2025
A7: Item | B7: Base | C7: Código | D7: Descrição | E7: Unid. | F7: Quant. | G7: Valor (R$)
G8: Unit. (sem BDI) | H8: Unit. (com BDI) | I8: Total
A10: 17 | D10: UNIDADE DE BENEFICIAMENTO DE FRUTOS | I10: =SUM(I11,I14,I20,I25,I31,I33,I37,I43,I48,I55) -> 397156.4492
A11: 17.1 | D11: SERVIÇOS PRELIMINARES | I11: =SUM(I12:I13) -> 5375.72
A12: 17.2 | B12: Sinapi | C12: 105009 | D12: =[1]CPU!$A$91 -> LOCAÇÃO DE OBRAS | E12: m | F12: =15+10+15+10 -> 50 | G12: =J12 -> 83.5 | H12: =(G12*K$1) -> 105.13485 | I12: =ROUND(F12*H12,2) -> 5256.74 | J12: 83.5
A13: 17.3 | B13: Sinapi | C13: 98525 | D13: LIMPEZA MECANIZADA DE CAMADA VEGETAL, VEGETAÇÃO E PEQUENAS ÁRVORES (DIÂMETRO DE TRONCO MENOR QUE 0,20 M), COM TRATOR DE ESTEIRAS. | E13: m² | F13: =15*10 -> 150 | G13: =J13 -> 0.63 | H13: =(G13*K$1) -> 0.793233 | I13: =ROUND(F13*H13,2) -> 118.98 | J13: 0.63
A14: 17.4 | D14: MOVIMENTO DE TERRA | I14: =SUM(I15:I19) -> 3035.77
A15: 17.5 | B15: Sinapi | C15: 101230 | D15: ESCAVAÇÃO VERTICAL A CÉU ABERTO, EM OBRAS DE INFRAESTRUTURA, INCLUINDO CARGA, DESCARGA E TRANSPORTE, EM SOLO DE 1ª CATEGORIA COM ESCAVADEIRA HIDRÁULICA (CAÇAMBA: 0,8 M³ / 111 HP) | E15: m³ | F15: 54.76 | G15: =J15 -> 10.94 | H15: =G15*$K$1 -> 13.774554 | I15: =ROUND(F15*H15,2) -> 754.29 | J15: 10.94
A16: 17.6 | B16: Sinapi | C16: 100577 | D16: REGULARIZAÇÃO E COMPACTAÇÃO DE SUBLEITO DE SOLO PREDOMINANTEMENTE ARENOSO. | E16: m² | F16: 150 | G16: =J16 -> 1.23 | H16: =G16*$K$1 -> 1.548693 | I16: =ROUND(F16*H16,2) -> 232.3 | J16: 1.23
A17: 17.7 | B17: Sinapi | C17: 96385 | D17: EXECUÇÃO E COMPACTAÇÃO DE ATERRO COM SOLO PREDOMINANTEMENTE ARGILOSO - EXCLUSIVE SOLO, ESCAVAÇÃO, CARGA E TRANSPORTE | E17: m³ | F17: 75 | G17: 11.59 | H17: =G17*$K$1 -> 14.592969 | I17: =ROUND(F17*H17,2) -> 1094.47 | J17: 11.59
A18: 17.8 | B18: Sinapi | C18: 100574 | D18: ESPALHAMENTO DE MATERIAL COM TRATOR DE ESTEIRAS. | E18: m³ | F18: 75 | G18: 1.42 | H18: =G18*$K$1 -> 1.787922 | I18: =ROUND(F18*H18,2) -> 134.09 | J18: 1.42
A19: 17.9 | B19: Sinapi | C19: 100973 | D19: CARGA, MANOBRA E DESCARGA DE SOLOS E MATERIAIS GRANULARES EM CAMINHÃO BASCULANTE 6 M³ - CARGA COM PÁ CARREGADEIRA (CAÇAMBA DE 1,7 A 2,8 M³ /128 HP) E DESCARGA LIVRE | E19: m³ | F19: 75 | G19: 8.69 | H19: =G19*$K$1 -> 10.941579 | I19: =ROUND(F19*H19,2) -> 820.62 | J19: 8.69
A20: 17.10 | D20: FUNDAÇÕES/ ESTRUTURAS DE CONCRETO ARMADO | I20: =SUM(I21:I24) -> 15967.86918
A21: 17.11 | B21: Sinapi | C21: 92802 | D21: CORTE E DOBRA DE AÇO CA-50, DIÂMETRO DE 8,0 MM | E21: kg | F21: 101.6 | G21: =J21 -> 9.82 | H21: =G21*$K$1 -> 12.364362 | I21: =H21*F21 -> 1256.219179 | J21: 9.82
A22: 17.12 | B22: Sinapi | C22: 94965 | D22: CONCRETO FCK = 25MPA, TRAÇO 1:2,3:2,7 (CIMENTO/ AREIA MÉDIA/ BRITA 1) - PREPARO MECÂNICO COM BETONEIRA 400 L. | E22: m³ | F22: 17 | G22: =J22 -> 576.97 | H22: 726.462927 | I22: =ROUND(F22*H22,2) -> 12349.87 | J22: 576.97
A23: 17.13 | B23: Sinapi | C23: 103673 | D23: LANÇAMENTO COM USO DE BOMBA, ADENSAMENTO E ACABAMENTO DE CONCRETO EM ESTRUTURAS. AF_02/2022 | E23: m³ | F23: 17 | G23: 45.48 | H23: 57.263868 | I23: =ROUND(F23*H23,2) -> 973.49 | J23: 45.48
A24: 17.14 | B24: Sinapi | C24: 97086 | D24: FABRICAÇÃO, MONTAGEM E DESMONTAGEM DE FORMA PARA RADIER, EM MADEIRA SERRADA, 4 UTILIZAÇÕES. | E24: m² | F24: 7.8 | G24: 141.36 | H24: 177.986376 | I24: =ROUND(F24*H24,2) -> 1388.29 | J24: 141.36
A25: 17.15 | D25: ALVENARIAS, DIVISÓRIAS E FECHAMENTOS | I25: =SUM(I26:I30) -> 59547.08
A26: 17.16 | B26: CPU | C26: CPU010 | D26: REVESTIMENTO DE PAREDES EM CHAPAS DE AÇO INOXIDÁVEL AISI 304 | E26: m² | F26: 160.29 | G26: 50.56 | H26: =G26*$K$1 -> 63.660096 | I26: =ROUND(F26*H26,2) -> 10204.08 | J26: =CPU!I155 -> 50.56
A27: 17.17 | B27: ORSE | C27: 10280/ORSE | D27: REVESTIMENTO TERMICO NAS PAREDES EXTERNAS COM LÃ DE VIDRO | E27: m² | F27: 134.78 | G27: 15.05 | H27: 18.949455 | I27: =ROUND(F27*H27,2) -> 2554.01 | J27: 15.05
A28: 17.18 | B28: CPU | C28: CPU009 | D28: CHAPA XADREZ EM ALUMINIO PARA PISO e:3mm, INCLUSO REBITE PARA FIXAÇÃO | E28: m² | F28: 56.544 | G28: 432.3337 | H28: 544.3513617 | I28: =ROUND(F28*H28,2) -> 30779.8 | J28: =CPU!I142 -> 432.3337
A29: 17.19 | B29: Sinapi | C29: 104723 | D29: PAREDE COM SISTEMA EM CHAPAS DE GESSO PARA DRYWALL, USO INTERNO, COM DUAS FACES DUPLAS E ESTRUTURA METÁLICA COM GUIAS DUPLAS PARA PAREDES COM ÁREA LÍQUIDA MENOR QUE 6 M2, COM VÃOS. | E29: m² | F29: 42.8 | G29: 212.24 | H29: 267.231384 | I29: =ROUND(F29*H29,2) -> 11437.5 | J29: 212.24
A30: 17.20 | B30: Sinapi | C30: 96486 | D30: FORRO EM RÉGUAS DE PVC, LISO, PARA AMBIENTES COMERCIAIS, INCLUSIVE ESTRUTURA BIDIRECIONAL DE FIXAÇÃO | E30: m² | F30: 54.112 | G30: 67.1 | H30: 84.48561 | I30: =ROUND(F30*H30,2) -> 4571.69 | J30: 67.1
A31: 17.21 | D31: PINTURAS | I31: =SUM(I32:I32) -> 15208.29
A32: 17.22 | B32: Sinapi | C32: 100751 | D32: PINTURA COM TINTA EPOXÍDICA DE ACABAMENTO PULVERIZADA SOBRE PERFIL METÁLICO EXECUTADO EM FÁBRICA (02 DEMÃOS). | E32: m² | F32: 263.9 | G32: 45.77 | H32: =G32*$K$1 -> 57.629007 | I32: =ROUND(F32*H32,2) -> 15208.29 | J32: 45.77
A33: 17.23 | D33: COBERTURAS | I33: =SUM(I34:I36) -> 42618.81
A34: 17.24 | B34: ORSE | C34: 13874/ORSE | D34: ESTRUTURA METALICA P/ COBERTURA DE CRECHE PADRÃO 1 DO PADRÃO FNDE, EM LIGTH STEEL FRAME, COM PERFIS UE70 MONTANTES DE TUBO UE70, INCLUSIVE FORNECIMENTO E MONTAGEM. EXCLUSIVE TELHAS | E34: m² | F34: 98.42 | G34: =J34 -> 113.51 | H34: =(G34*K$1) -> 142.920441 | I34: =ROUND(F34*H34,2) -> 14066.23 | J34: 113.51
A35: 17.25 | B35: Sinapi | C35: 94216 | D35: TELHAMENTO COM TELHA METÁLICA TERMOACÚSTICA E = 30 MM, COM ATÉ 2 ÁGUAS, INCLUSO IÇAMENTO | E35: m² | F35: 98.42 | G35: 213.14 | H35: =G35*$K$1 -> 268.364574 | I35: =ROUND(F35*H35,2) -> 26412.44 | J35: 213.14
A36: 17.26 | B36: Sinapi | C36: 94228 | D36: CALHA EM CHAPA DE AÇO GALVANIZADO NÚMERO 24, DESENVOLVIMENTO DE 50 CM, INCLUSO TRANSPORTE VERTICAL. AF_07/2019 | E36: m | F36: 18 | G36: 94.43 | H36: 118.896813 | I36: =ROUND(F36*H36,2) -> 2140.14 | J36: 94.43
A37: 17.27 | D37: CONSTRUÇÃO CIVIL | I37: =SUM(I38:I42) -> 25424.55
A38: 17.28 | B38: Sinapi | C38: 100702 | D38: PORTA DE CORRER DE ALUMÍNIO, COM DUAS FOLHAS PARA VIDRO, INCLUSO VIDRO LISO INCOLOR, FECHADURA E PUXADOR, SEM ALIZAR. | E38: m² | F38: 4.85 | G38: 413.17 | H38: =G38*$K$1 -> 520.222347 | I38: =ROUND(F38*H38,2) -> 2523.08 | J38: 413.17
A39: 17.29 | B39: Sinapi | C39: 91341 | D39: PORTA EM ALUMÍNIO DE ABRIR TIPO VENEZIANA COM GUARNIÇÃO, FIXAÇÃO COM PARAFUSOS - FORNECIMENTO E INSTALAÇÃO. | E39: m² | F39: 3.8 | G39: 639.44 | H39: 805.118904 | I39: =ROUND(F39*H39,2) -> 3059.45 | J39: 639.44
A40: 17.30 | B40: Sinapi | C40: 100674 | D40: JANELA FIXA DE ALUMÍNIO PARA VIDRO, COM VIDRO, BATENTE E FERRAGENS. EXCLUSIVE ACABAMENTO, ALIZAR E CONTRAMARCO. FORNECIMENTO E INSTALAÇÃO. | E40: m² | F40: 8.85 | G40: 938.54 | H40: 1181.715714 | I40: =ROUND(F40*H40,2) -> 10458.18 | J40: 938.54
A41: 17.31 | B41: CPU | C41: CPU007 | D41: REVESTIMENTO CERÂMICO PARA PISO COM PLACAS TIPO ESMALTADA DE DIMENSÕES 45x45cm COM ARGAMASSA AC III | E41: m² | F41: 60 | G41: 86.441647 | H41: 108.8386777 | I41: =ROUND(F41*H41,2) -> 6530.32 | J41: =CPU!I118 -> 86.441647
A42: 17.32 | B42: Sinapi | C42: 94228 | D42: CALHA EM CHAPA DE AÇO GALVANIZADO NÚMERO 24, DESENVOLVIMENTO DE 50 CM, INCLUSO TRANSPORTE VERTICAL. AF_07/2019 | E42: m | F42: 24 | G42: 94.43 | H42: 118.896813 | I42: =ROUND(F42*H42,2) -> 2853.52 | J42: 94.43
A43: 17.33 | D43: INSTALAÇÕES PREDIAIS | I43: =SUM(I44:I47) -> 14934.1
A44: 17.34 | B44: CPU | C44: CPU001 | D44: =[2]CPU!$A$65 -> EXECUÇÃO DE INSTALAÇÕES HIDROSSANITÁRIAS, EXCLUSIVE EQUIPAMENTOS | E44: =[2]CPU!$I$78 -> cj | F44: 1 | G44: 3153.6 | H44: =G44*$K$1 -> 3970.69776 | I44: =ROUND(F44*H44,2) -> 3970.7 | J44: =CPU!I16 -> 3153.6
A45: 17.35 | B45: CPU | C45: CPU002 | D45: =[2]CPU!$A$78 -> EXECUÇÃO DE INSTALAÇÕES ELÉTRICAS, EXCLUSIVE EQUIPAMENTOS | E45: =[2]CPU!$I$78 -> cj | F45: 1 | G45: 3268.8 | H45: 4115.74608 | I45: =ROUND(F45*H45,2) -> 4115.75 | J45: =CPU!I29 -> 3268.8
A46: 17.36 | B46: SINAPI | C46: 98052 | D46: TANQUE SÉPTICO CIRCULAR, EM CONCRETO PRÉ-MOLDADO, DIÂMETRO INTERNO = 1,10 M, ALTURA INTERNA = 2,50 M, VOLUME ÚTIL: 2138,2 L (PARA 5 CONTRIBUINTES). | E46: un | F46: 1 | G46: 2201.54 | H46: 2771.959014 | I46: 2771.96 | J46: 2201.54
A47: 17.37 | B47: SINAPI | C47: 98062 | D47: SUMIDOURO CIRCULAR, EM CONCRETO PRÉ-MOLDADO, DIÂMETRO INTERNO = 1,88 M, ALTURA INTERNA = 2,00 M, ÁREA DE INFILTRAÇÃO: 13,1 M² (PARA 5 CONTRIBUINTES) | E47: un | F47: 1 | G47: 3236.99 | H47: 4075.694109 | I47: 4075.69 | J47: 3236.99
A48: 17.38 | D48: SERVIÇOS DIVERSOS | I48: =SUM(I49:I54) -> 36974.88
A49: 17.39 | B49: CPU | C49: CPU003 | D49: =[2]CPU!$A$140 -> CORTE DE CONTAINER PARA ESQUADRIAS | E49: =[2]CPU!$I$140 -> m² | F49: 12.65 | G49: 182.17817 | H49: =G49*$K$1 -> 229.3805338 | I49: =ROUND(F49*H49,2) -> 2901.66 | J49: =CPU!I47 -> 182.17817
A50: 17.40 | B50: CPU | C50: CPU004 | D50: =[2]CPU!$A$182 -> MODIFICAÇÕES NO CONTAINER COM CORTE POR ESMERILHADEIRA | E50: =[2]CPU!$I$182 -> m | F50: 57.68 | G50: 95.8108 | H50: 120.6353783 | I50: 6958.25 | J50: =CPU!I65 -> 95.8108
A51: 17.41 | B51: CPU | C51: CPU005 | D51: =[2]CPU!$A$200 -> MODIFICAÇÕES NO CONTAINER UNIÃO ATRAVÉS DO PROCESSO DE SOLDAGEM, INCLUSO IÇAMENTO DO CONTAINER | E51: =[2]CPU!$I$200 -> m | F51: 40.8 | G51: 387.142628 | H51: 487.4512829 | I51: 19888.01 | J51: =CPU!I87 -> 387.142628
A52: 17.42 | B52: Orse | C52: 00900/ORSE | D52: ESCADA DE FERRO COM GUARDA-CORPO | E52: m | F52: 0.9 | G52: 1472.16 | H52: 1853.596656 | I52: 1668.24 | J52: 1472.16
A53: 17.43 | B53: CPU | C53: CPU011 | D53: GUARDA-CORPO DE AÇO CARBONO, MONTANTES TUBULARES DE 1.1/2" ESPAÇADOS EM 0,75M, ALTURA APROXIMADA DE 0,90M, PREPARADO COM FUNDO E TINTA EPÓXI NA COR AMARELA | E53: m | F53: 1.9 | G53: 516.7269347 | H53: 650.6108834 | I53: 1236.16 | J53: =CPU!I178 -> 516.7269347
A54: 17.44 | B54: CPU | C54: CPU013 | D54: FORNECIMENTO E INSTALAÇÃO DE SUPORTE PARA CAIXA D'ÁGUA EM METALON | E54: un | F54: 1 | G54: 3433.058452 | H54: 4322.563897 | I54: 4322.56 | J54: =CPU!I216 -> 3433.058452
A55: 17.45 | D55: MATERIAIS | I55: =SUM(I56:I104) -> 178069.38
A56: 17.46 | B56: Cotação | D56: CONTAINER HIGH CUBE 40 PÉS 12,2X2,3X2,9 (COMPXLARGXALTU) | E56: un | F56: 2 | G56: 18015 | H56: =G56*$K$1 -> 22682.6865 | I56: =ROUND(F56*H56,2) -> 45365.37 | J56: =CPU!I195 -> 18015
A57: 17.47 | B57: Sinapi | C57: 89356 | D57: TUBO PVC, SOLDAVEL, DN 25 MM, AGUA FRIA (NBR-5648) | E57: m | F57: 6 | G57: 25.84 | H57: 32.535144 | I57: 195.21 | J57: 25.84
A58: 17.48 | B58: Sinapi | C58: 89357 | D58: TUBO PVC, SOLDAVEL, DN 32 MM, AGUA FRIA (NBR-5648) | E58: m | F58: 18 | G58: 35.52 | H58: 44.723232 | I58: 805.02 | J58: 35.52
A59: 17.49 | B59: Sinapi | C59: 89448 | D59: TUBO PVC, SOLDAVEL, DN 40 MM, AGUA FRIA (NBR-5648) | E59: m | F59: 3 | G59: 18.03 | H59: 22.701573 | I59: 68.1 | J59: 18.03
A60: 17.50 | B60: Sinapi | C60: 9838 | D60: TUBO PVC SERIE NORMAL, DN 50 MM, PARA ESGOTO PREDIAL (NBR 5688) | E60: m | F60: 30 | G60: 10.22 | H60: 12.868002 | I60: 386.04 | J60: 10.22
A61: 17.51 | B61: Sinapi | C61: 89362 | D61: JOELHO 90 GRAUS, PVC, SOLDÁVEL, DN 25MM, INSTALADO EM RAMAL OU SUB-RAMAL DE ÁGUA - FORNECIMENTO E INSTALAÇÃO. AF_06/2022 | E61: un | F61: 5 | G61: 10.42 | H61: 13.119822 | I61: 65.6 | J61: 10.42
A62: 17.52 | B62: Sinapi | C62: 89367 | D62: JOELHO 90 GRAUS, PVC, SOLDÁVEL, DN 32MM, INSTALADO EM RAMAL OU SUB-RAMAL DE ÁGUA - FORNECIMENTO E INSTALAÇÃO. AF_06/2022 | E62: un | F62: 4 | G62: 14.37 | H62: 18.093267 | I62: 72.37 | J62: 14.37
A63: 17.53 | B63: Sinapi | C63: 89497 | D63: JOELHO 90 GRAUS, PVC, SOLDÁVEL, DN 40MM, INSTALADO EM PRUMADA DE ÁGUA - FORNECIMENTO E INSTALAÇÃO. AF_06/2022 | E63: un | F63: 3 | G63: 14.45 | H63: 18.193995 | I63: 54.58 | J63: 14.45
A64: 17.54 | B64: Sinapi | C64: 3874 | D64: LUVA SOLDAVEL COM BUCHA DE LATÃO DN25X1/2" | E64: un | F64: 5 | G64: 6.69 | H64: 8.423379 | I64: 42.12 | J64: 6.69
A65: 17.55 | B65: Sinapi | C65: 12909 | D65: CAP PVC, SOLDAVEL, DN 50 MM, SERIE NORMAL, PARA ESGOTO PREDIAL | E65: un | F65: 3 | G65: 4.26 | H65: 5.363766 | I65: 16.09 | J65: 4.26
A66: 17.56 | B66: Sinapi | C66: 7136 | D66: TE DE REDUCAO, PVC, SOLDAVEL, 90 GRAUS, 32 MM X 25 MM, PARA AGUA FRIA PREDIAL | E66: un | F66: 5 | G66: 7.47 | H66: 9.405477 | I66: 47.03 | J66: 7.47
A67: 17.57 | B67: Sinapi | C67: 97 | D67: ADAPTADOR PVC SOLDAVEL, COM FLANGE E ANEL DE VEDACAO, 32 MM X 1", PARA CAIXA D'ÁGUA | E67: un | F67: 1 | G67: 20.71 | H67: 26.075961 | I67: 26.08 | J67: 20.71
A68: 17.58 | B68: Sinapi | C68: 98 | D68: ADAPTADOR PVC SOLDAVEL, COM FLANGE E ANEL DE VEDACAO, 40 MM X 1 1/4", PARA CAIXA D'ÁGUA | E68: un | F68: 1 | G68: 31 | H68: 39.0321 | I68: 39.03 | J68: 31
A69: 17.59 | B69: Sinapi | C69: 11871 | D69: CAIXA D'AGUA EM POLIETILENO 500 LITROS, COM TAMPA | E69: un | F69: 1 | G69: 516.01 | H69: 649.708191 | I69: 649.71 | J69: 516.01
A70: 17.60 | B70: Sinapi | C70: 94795 | D70: TORNEIRA DE BOIA PARA CAIXA D'ÁGUA, ROSCÁVEL, 1/2" - FORNECIMENTO E INSTALAÇÃO. AF_08/2021 | E70: un | F70: 1 | G70: 59.89 | H70: 75.407499 | I70: 75.41 | J70: 59.89
A71: 17.61 | B71: Sinapi | C71: 799 | D71: BUCHA DE REDUCAO PVC, ROSCAVEL, 1" X 1/2" | E71: un | F71: 1 | G71: 3.92 | H71: 4.935672 | I71: 4.94 | J71: 3.92
A72: 17.62 | B72: Sinapi | C72: 11746 | D72: VALVULA DE ESFERA BRUTA EM BRONZE, BITOLA 1” | E72: un | F72: 1 | G72: 82.88 | H72: 104.354208 | I72: 104.35 | J72: 82.88
A73: 17.63 | B73: Sinapi | C73: 4177 | D73: NIPLE DE FERRO GALVANIZADO, COM ROSCA BSP, DE 1/2" | E73: un | F73: 1 | G73: 5.47 | H73: 6.887277 | I73: =ROUND(F73*H73,2) -> 6.89 | J73: 5.47
A74: 17.64 | B74: Sinapi | C74: 3855 | D74: LUVA SOLDAVEL COM BUCHA DE LATÃO DN25X1/2" | E74: un | F74: 1 | G74: 5.77 | H74: 7.265007 | I74: =ROUND(F74*H74,2) -> 7.27 | J74: 5.77
A75: 17.65 | B75: Sinapi | C75: 11674 | D75: REGISTRO ESFERA PVC DN25 SOLDAVEL | E75: un | F75: 1 | G75: 25.7 | H75: 32.35887 | I75: =ROUND(F75*H75,2) -> 32.36 | J75: 25.7
A76: 17.66 | B76: Sinapi | C76: 35277 | D76: CAIXA DE GORDURA EM PVC, DIAMETRO MINIMO 300 MM, DIAMETRO DE SAIDA 100 MM CAPACIDADE APROXIMADA 18 LITROS, COM TAMPA E CESTO | E76: un | F76: 2 | G76: 515.23 | H76: 648.726093 | I76: =ROUND(F76*H76,2) -> 1297.45 | J76: 515.23
A77: 17.67 | B77: Sinapi | C77: 89482 | D77: CAIXA SIFONADA, PVC, DN 100 X 100 X 50 MM, FORNECIDA E INSTALADA EM RAMAIS DE ENCAMINHAMENTO DE ÁGUA PLUVIAL. AF_06/2022 | E77: un | F77: 5 | G77: 50.56 | H77: 63.660096 | I77: 318.3 | J77: 50.56
A78: 17.68 | B78: Sinapi | C78: 89502 | D78: JOELHO 45 GRAUS, PVC, SOLDÁVEL, DN 50MM, INSTALADO EM PRUMADA DE ÁGUA - FORNECIMENTO E INSTALAÇÃO. AF_06/2022 | E78: un | F78: 4 | G78: 18.51 | H78: 23.305941 | I78: 93.22 | J78: 18.51
A79: 17.69 | B79: Sinapi | C79: 89501 | D79: JOELHO 90 GRAUS, PVC, SOLDÁVEL, DN 50MM, INSTALADO EM PRUMADA DE ÁGUA - FORNECIMENTO E INSTALAÇÃO. AF_06/2022 | E79: un | F79: 10 | G79: 15.73 | H79: 19.805643 | I79: 198.06 | J79: 15.73
A80: 17.70 | B80: Sinapi | C80: 103995 | D80: LUVA, PVC, SOLDÁVEL, DN 50MM, INSTALADO EM RAMAL DE DISTRIBUIÇÃO DE ÁGUA - FORNECIMENTO E INSTALAÇÃO. AF_06/2022 | E80: un | F80: 21 | G80: 16.52 | H80: 20.800332 | I80: 436.81 | J80: 16.52
A81: 17.71 | B81: Sinapi | C81: 89567 | D81: JUNÇÃO SIMPLES, PVC, SERIE R, ÁGUA PLUVIAL, DN 100 X 100 MM, JUNTA ELÁSTICA, FORNECIDO E INSTALADO EM RAMAL DE ENCAMINHAMENTO. AF_06/2022 | E81: un | F81: 6 | G81: 76.96 | H81: 96.900336 | I81: 581.4 | J81: 76.96
A82: 17.72 | B82: Sinapi | C82: 12909 | D82: CAP PVC, SOLDAVEL, DN 50 MM, SERIE NORMAL, PARA ESGOTO | E82: un | F82: 1 | G82: 4.26 | H82: 5.363766 | I82: 5.36 | J82: 4.26
A83: 17.73 | B83: Sinapi | C83: 34628 | D83: DISJUNTOR TIPO DIN/IEC, BIPOLAR 63 A | E83: un | F83: 1 | G83: 111.73 | H83: 140.679243 | I83: 140.68 | J83: 111.73
A84: 17.74 | B84: Sinapi | C84: 34616 | D84: DISJUNTOR TIPO DIN/IEC, BIPOLAR DE 6 ATE 32A | E84: un | F84: 6 | G84: 79.22 | H84: 99.745902 | I84: 598.48 | J84: 79.22
A85: 17.75 | B85: ORSE | C85: 07943/ORSE | D85: DISJUNTOR BIPOLAR DR 25A - DISPOSITIVO DIFERENCIAL RESIDUAL, TIPO AC, 30MA | E85: un | F85: 3 | G85: 278.5 | H85: 350.65935 | I85: 1051.98 | J85: 278.5
A86: 17.76 | B86: Sinapi | C86: 39805 | D86: QUADRO DE DISTRIBUICAO, EM PVC, DE EMBUTIR, COM BARRAMENTO TERRA / NEUTRO, PARA 12 DISJUNTORES NEMA OU 16 DISJUNTORES DIN | E86: un | F86: 1 | G86: =J86 -> 280.15 | H86: 352.736865 | I86: 352.74 | J86: 280.15
A87: 17.77 | B87: Sinapi | C87: 1014 | D87: CABO DE COBRE, FLEXIVEL, CLASSE 4 OU 5, ISOLACAO EM PVC/A, ANTICHAMA BWF-B, 1 CONDUTOR, 450/750 V, SECAO NOMINAL 2,5 MM2 | E87: m | F87: 397.5 | G87: 2.92 | H87: 3.676572 | I87: 1461.44 | J87: 2.92
A88: 17.78 | B88: Sinapi | C88: 39471 | D88: DISPOSITIVO DPS CLASSE II, 1 POLO, TENSAO MAXIMA DE 275 V, CORRENTE MAXIMA DE *45* KA (TIPO AC) | E88: un | F88: 2 | G88: 159.11 | H88: 200.335401 | I88: 400.67 | J88: 159.11
A89: 17.79 | B89: Sinapi | C89: 981 | D89: CABO DE COBRE, FLEXIVEL, CLASSE 4 OU 5, ISOLACAO EM PVC/A, ANTICHAMA BWF-B, 1 CONDUTOR, 450/750 V, SECAO NOMINAL 4 MM2 | E89: m | F89: 77.58 | G89: 4.84 | H89: 6.094044 | I89: 472.78 | J89: 4.84
A90: 17.80 | B90: Sinapi | C90: 993 | D90: CABO DE COBRE, FLEXIVEL, CLASSE 4 OU 5, ISOLACAO EM PVC/A, ANTICHAMA BWF-B, COBERTURA PVC-ST1, ANTICHAMA BWF-B, 1 CONDUTOR, 0,6/1 KV, SECAO NOMINAL 1,5 MM2 | E90: m | F90: 396.4 | G90: 2.48 | H90: 3.122568 | I90: 1237.79 | J90: 2.48
A91: 17.81 | B91: Sinapi | C91: 38076 | D91: TOMADAS (2 MODULOS) 2P+T 10A, 250V, CONJUNTO MONTADO PARA EMBUTIR 4" X 2" (PLACA + SUPORTE + MODULOS) | E91: un | F91: 11 | G91: 24.86 | H91: 31.301226 | I91: 344.31 | J91: 24.86
A92: 17.82 | B92: Sinapi | C92: 1871 | D92: CAIXA OCTOGONAL DE FUNDO MOVEL, EM PVC, DE 3" X 3", PARA ELETRODUTO FLEXIVEL CORRUGADO | E92: un | F92: 8 | G92: 4.88 | H92: 6.144408 | I92: 49.16 | J92: 4.88
A93: 17.83 | B93: Sinapi | C93: 2689 | D93: ELETRODUTO PVC FLEXIVEL CORRUGADO, COR AMARELA, DE 20 MM | E93: m | F93: 15.53 | G93: 3 | H93: 3.7773 | I93: 58.66 | J93: 3
A94: 17.84 | B94: Sinapi | C94: 2688 | D94: ELETRODUTO PVC FLEXIVEL CORRUGADO, COR AMARELA, DE 25 MM | E94: m | F94: 71.74 | G94: 3.25 | H94: 4.092075 | I94: 293.57 | J94: 3.25
A95: 17.85 | B95: Sinapi | C95: 20111 | D95: FITA ISOLANTE ADESIVA ANTICHAMA, USO ATE 750 V, EM ROLO DE 19 MM X 20 M | E95: un | F95: 6 | G95: 11.2 | H95: 14.10192 | I95: 84.61 | J95: 11.2
A96: 17.86 | B96: Sinapi | C96: 1873 | D96: CAIXA DE PASSAGEM, EM PVC, DE 4" X 4", PARA ELETRODUTO FLEXIVEL CORRUGADO | E96: un | F96: 1 | G96: 5.42 | H96: 6.824322 | I96: 6.82 | J96: 5.42
A97: 17.87 | B97: Sinapi | C97: 38063 | D97: INTERRUPTOR PARALELO 10A, 250V, CONJUNTO MONTADO PARA EMBUTIR 4" X 2" (PLACA + SUPORTE + MODULO) | E97: un | F97: 4 | G97: 13.38 | H97: 16.846758 | I97: 67.39 | J97: 13.38
A98: 17.88 | B98: Sinapi | C98: 38078 | D98: INTERRUPTOR PARALELO + TOMADA 2P+T 10A, 250V, CONJUNTO MONTADO PARA EMBUTIR 4" X 2" (PLACA + SUPORTE + MODULOS) | E98: un | F98: 1 | G98: 22.95 | H98: 28.896345 | I98: 28.9 | J98: 22.95
A99: 17.89 | B99: Sinapi | C99: 38775 | D99: LUMINARIA TIPO TARTARUGA PARA AREA EXTERNA EM ALUMINIO, COM GRADE, PARA 1 LAMPADA, BASE E27, POTENCIA MAXIMA 40/60 W (NAO INCLUI LAMPADA) | E99: un | F99: 8 | G99: 80.79 | H99: =(G99*K$2) -> 91.77744 | I99: 734.22 | J99: 80.79
A100: 17.90 | B100: Sinapi | C100: 10569 | D100: CAIXA DE PASSAGEM / DERIVACAO / LUZ, OCTOGONAL 4 X4, EM ACO ESMALTADA, COM FUNDO MOVEL SIMPLES (FMS) | E100: un | F100: 6 | G100: 3.5 | H100: 4.40685 | I100: 26.44 | J100: 3.5
A101: 17.91 | B101: Sinapi | C101: 100954 | D101: TRANSPORTE COM CAMINHÃO CARROCERIA COM GUINDAUTO (MUNCK), MOMENTO MÁXIMO DE CARGA 11,7 TM, EM VIA INTERNA (DENTRO DO CANTEIRO - UNIDADE: TXKM). AF_07/2020 | E101: TXKM | F101: 600 | G101: 8.97 | H101: 11.294127 | I101: =ROUND(F101*H101,2) -> 6776.48 | J101: 8.97
A102: 17.92 | B102: Sinapi | C102: 100788 | D102: KIT CAVALETE PARA GÁS - SEM MEDIDOR OU REGULADOR - ENTRADA INDIVIDUAL PRINCIPAL, EM AÇO GALVANIZADO DN 15 E 25 MM (1/2" E 1") - FORNECIMENTO E INSTALAÇÃO | E102: und | F102: 1 | G102: 780.64 | H102: 982.903824 | I102: =ROUND(F102*H102,2) -> 982.9 | J102: 780.64
A103: 17.93 | B103: CPU | C103: CPU008 | D103: CHAPA XADREZ EM ALUMINIO PARA PISO e:3mm, INCLUSO REBITE PARA FIXAÇÃO - APENAS MATERIAL | E103: m² | F103: 56.544 | G103: 554.6 | H103: 698.29686 | I103: =ROUND(F103*H103,2) -> 39484.5 | J103: =CPU!I129 -> 554.6
A104: 17.94 | B104: CPU | C104: CPU006 | D104: REVESTIMENTO DE PAREDES EM CHAPAS DE AÇO INOXIDÁVEL AISI 304 - APENAS MATERIAL | E104: m² | F104: 160.29 | G104: 358.836 | H104: 451.8104076 | I104: =ROUND(F104*H104,2) -> 72420.69 | J104: =CPU!I99 -> 358.836

Sheet CPU
A1: PLANILHA ORÇAMENTÁRIA DE ESTIMATIVA GERAL PARA O DISTRITO FEDERAL | H1: Base SINAPI-DF 03-2025 ORSE 02-2025
H2: Data: Maio - 2025
A3: COMPOSIÇÕES DE PREÇO UNITÁRIO
A5: COMPOSIÇÃO DE PREÇO UNITÁRIO | I5: CPU001
A6: DESCRIÇÃO DO SERVIÇO | H6: DATA BASE: | I6: 2024-07-01
A7: EXECUÇÃO DE INSTALAÇÕES HIDROSSANITÁRIAS, EXCLUSIVE EQUIPAMENTOS | H7: UNIDADE: | I7: cj
A8: MÃO DE OBRA
A9: BASE | B9: CÓDIGO | C9: DISCRIMINAÇÃO | D9: UNI | E9: QUANT. | H9: P.UNIT. | I9: P.TOTAL
A10: SINAPI | B10: 88316 | C10: SERVENTE DE OBRAS | D10: h | E10: 80 | H10: 23.75 | I10: =E10*H10 -> 1900
A11: SINAPI | B11: 88309 | C11: PEDREIRO | D11: h | E11: 40 | H11: 31.34 | I11: =E11*H11 -> 1253.6
A12: SUB-TOTAL | I12: =SUM(I10:I11) -> 3153.6
A13: PRODUÇÃO DA EQUIPE | D13: 1 | E13: CUSTO | I13: =SUM(I12) -> 3153.6
A14: TOTAL - R$ | I14: =I13/D13 -> 3153.6
A15: BDI % | I15: 1
A16: TOTAL DO SERVIÇO - R$ | I16: =I14*I15 -> 3153.6
A18: COMPOSIÇÃO DE PREÇO UNITÁRIO | I18: CPU002
A19: DESCRIÇÃO DO SERVIÇO | H19: DATA BASE: | I19: 2024-07-01
A20: EXECUÇÃO DE INSTALAÇÕES ELÉTRICAS, EXCLUSIVE EQUIPAMENTOS | H20: UNIDADE: | I20: cj
A21: MÃO DE OBRA
A22: BASE | B22: CÓDIGO | C22: DISCRIMINAÇÃO | D22: UNI | E22: QUANT. | H22: P.UNIT. | I22: P.TOTAL
A23: SINAPI | B23: 88247 | C23: AUXILIAR DE ELETRICISTA | D23: h | E23: 80 | H23: 25 | I23: =E23*H23 -> 2000
A24: SINAPI | B24: 88264 | C24: ELETRICISTA | D24: h | E24: 40 | H24: 31.72 | I24: =E24*H24 -> 1268.8
A25: SUB-TOTAL | I25: =SUM(I23:I24) -> 3268.8
A26: PRODUÇÃO DA EQUIPE | D26: 1 | E26: CUSTO | I26: =SUM(I25) -> 3268.8
A27: TOTAL - R$ | I27: =I26/D26 -> 3268.8
A28: BDI % | I28: 1
A29: TOTAL DO SERVIÇO - R$ | I29: =I27*I28 -> 3268.8
A31: COMPOSIÇÃO DE PREÇO UNITÁRIO | I31: CPU003
A32: DESCRIÇÃO DO SERVIÇO | H32: DATA BASE: | I32: 2024-07-01
A33: CORTE DE CONTAINER PARA ESQUADRIAS | H33: UNIDADE: | I33: m²
A34: MATERIAL
A35: BASE | B35: CÓDIGO | C35: DISCRIMINAÇÃO | D35: UNI | E35: QUANT. | H35: P.UNIT. | I35: P.TOTAL
A36: SINAPI | B36: 11359 | C36: ESMERILHADEIRA ANGULAR ELETRICA, DIAMETRO DO DISCO 7 '' (180 MM), ROTACAO 8500RPM, POTENCIA 2400 W | D36: un | E36: 0.071 | H36: 1049.27 | I36: =E36*H36 -> 74.49817
A37: SINAPI | B37: 44531 | C37: DISCO DE CORTE DIAMANTADO SEGMENTADO DIAMETRO DE 180 MM PARA ESMERILHADEIRA 7 " | D37: un | E37: 1 | H37: 76.08 | I37: =E37*H37 -> 76.08
A38: SUB-TOTAL | I38: =SUM(I36:I37) -> 150.57817
A39: MÃO DE OBRA
A40: BASE | B40: CÓDIGO | C40: DISCRIMINAÇÃO | D40: UNI | E40: QUANT. | H40: P.UNIT. | I40: P.TOTAL
A41: SINAPI | B41: 88317 | C41: SOLDADOR COM ENCARGOS COMPLEMENTARES | D41: h | E41: 0.5 | H41: 32.07 | I41: =E41*H41 -> 16.035
A42: SINAPI | B42: 88315 | C42: SERRALHEIRO COM ENCARGOS COMPLEMENTARES | D42: h | E42: 0.5 | H42: 31.13 | I42: =E42*H42 -> 15.565
A43: SUB-TOTAL | I43: =SUM(I41:I42) -> 31.6
A44: PRODUÇÃO DA EQUIPE | D44: 1 | E44: CUSTO | I44: =I43+I38 -> 182.17817
A45: TOTAL - R$ | I45: =I44/D44 -> 182.17817
A46: BDI % | I46: 1
A47: TOTAL DO SERVIÇO - R$ | I47: =I45*I46 -> 182.17817
A49: COMPOSIÇÃO DE PREÇO UNITÁRIO | I49: CPU004
A50: DESCRIÇÃO DO SERVIÇO | H50: DATA BASE: | I50: 2024-07-01
A51: MODIFICAÇÕES NO CONTAINER COM CORTE POR ESMERILHADEIRA | H51: UNIDADE: | I51: m
A52: MATERIAL
A53: BASE | B53: CÓDIGO | C53: DISCRIMINAÇÃO | D53: UNI | E53: QUANT. | H53: P.UNIT. | I53: P.TOTAL
A54: SINAPI | B54: 11359 | C54: ESMERILHADEIRA ANGULAR ELETRICA, DIAMETRO DO DISCO 7 '' (180 MM), ROTACAO 8500RPM, POTENCIA 2400 W | D54: un | E54: 0.04 | H54: 1049.27 | I54: =E54*H54 -> 41.9708
A55: SINAPI | B55: 44531 | C55: DISCO DE CORTE DIAMANTADO SEGMENTADO DIAMETRO DE 180 MM PARA ESMERILHADEIRA 7 " | D55: un | E55: 0.5 | H55: 76.08 | I55: =E55*H55 -> 38.04
A56: SUB-TOTAL | I56: =SUM(I54:I55) -> 80.0108
A57: MÃO DE OBRA
A58: BASE | B58: CÓDIGO | C58: DISCRIMINAÇÃO | D58: UNI | E58: QUANT. | H58: P.UNIT. | I58: P.TOTAL
A59: SINAPI | B59: 88317 | C59: SOLDADOR COM ENCARGOS COMPLEMENTARES | D59: h | E59: 0.25 | H59: 32.07 | I59: =E59*H59 -> 8.0175
A60: SINAPI | B60: 88315 | C60: SERRALHEIRO COM ENCARGOS COMPLEMENTARES | D60: h | E60: 0.25 | H60: 31.13 | I60: =E60*H60 -> 7.7825
A61: SUB-TOTAL | I61: =SUM(I59:I60) -> 15.8
A62: PRODUÇÃO DA EQUIPE | D62: 1 | E62: CUSTO | I62: =I61+I56 -> 95.8108
A63: TOTAL - R$ | I63: =I62/D62 -> 95.8108
A64: BDI % | I64: 1
A65: TOTAL DO SERVIÇO - R$ | I65: =I63*I64 -> 95.8108
A67: COMPOSIÇÃO DE PREÇO UNITÁRIO | I67: CPU005
A68: DESCRIÇÃO DO SERVIÇO | H68: DATA BASE: | I68: 2024-07-01
A69: MODIFICAÇÕES NO CONTAINER UNIÃO ATRAVÉS DO PROCESSO DE SOLDAGEM, INCLUSO IÇAMENTO DO CONTAINER | H69: UNIDADE: | I69: m
A70: EQUIPAMENTO
A71: BASE | B71: CÓDIGO | C71: DISCRIMINAÇÃO | D71: UNI | E71: QUANT. | H71: P.UNIT. | I71: P.TOTAL
A72: SINAPI | B72: 92716 | C72: APARELHO PARA CORTE E SOLDA OXI-ACETILENO SOBRE RODAS, INCLUSIVE CILINDROS E MAÇARICOS | D72: chp | E72: 0.1846 | H72: 109.36 | I72: =E72*H72 -> 20.187856
A73: SINAPI | B73: 92715 | C73: APARELHO PARA CORTE E SOLDA OXI-ACETILENO SOBRE RODAS, INCLUSIVE CILINDROS E MAÇARICOS - MATERIAIS NA OPERAÇÃO. | D73: h | E73: 1.56 | H73: 109 | I73: =E73*H73 -> 170.04
A74: SINAPI | B74: 5928 | C74: GUINDAUTO HIDRÁULICO, CAPACIDADE MÁXIMA DE CARGA 6200 KG, MOMENTO MÁXIMO DE CARGA 11,7 TM, ALCANCE MÁXIMO HORIZONTAL 9,70 M, INCLUSIVE CAMINHÃO TOCO PBT 16.000 KG, POTÊNCIA DE 189 CV | D74: chp | E74: 0.2388 | H74: 291.69 | I74: =E74*H74 -> 69.655572
A75: SUB-TOTAL | I75: =SUM(I72:I74) -> 259.883428
A76: SERVIÇOS - COMPOSIÇÕES AUXILIARES
A77: BASE | B77: CÓDIGO | C77: DISCRIMINAÇÃO | D77: UNI | E77: QUANT. | H77: P.UNIT. | I77: P.TOTAL
A78: SINAPI | B78: 98746 | C78: SOLDA DE TOPO EM CHAPA/PERFIL/TUBO DE AÇO CHANFRADO, ESPESSURA=1/4''. | D78: m | E78: 1 | H78: 77.23 | I78: =E78*H78 -> 77.23
A79: SUB-TOTAL | I79: =SUM(I78:I78) -> 77.23
A80: MÃO DE OBRA
A81: BASE | B81: CÓDIGO | C81: DISCRIMINAÇÃO | D81: UNI | E81: QUANT. | H81: P.UNIT. | I81: P.TOTAL
A82: SINAPI | B82: 88317 | C82: SOLDADOR COM ENCARGOS COMPLEMENTARES | D82: h | E82: 1.56 | H82: 32.07 | I82: =E82*H82 -> 50.0292
A83: SUB-TOTAL | I83: =SUM(I82:I82) -> 50.0292
A84: PRODUÇÃO DA EQUIPE | D84: 1 | E84: CUSTO | I84: =I83+I75+I79 -> 387.142628
A85: TOTAL - R$ | I85: =I84/D84 -> 387.142628
A86: BDI % | I86: 1
A87: TOTAL DO SERVIÇO - R$ | I87: =I85*I86 -> 387.142628
A89: COMPOSIÇÃO DE PREÇO UNITÁRIO | I89: CPU006
A90: DESCRIÇÃO DO SERVIÇO | H90: DATA BASE: | I90: 2024-07-01
A91: REVESTIMENTO DE PAREDES EM CHAPAS DE AÇO INOXIDÁVEL AISI 304 - CONSIDERANDO CHAPA DE 1,2mm | H91: UNIDADE: | I91: M²
A92: APENAS MATERIAL
A93: BASE | B93: CÓDIGO | C93: DISCRIMINAÇÃO | D93: UNI | E93: QUANT. | H93: P.UNIT. | I93: P.TOTAL
A94: COTAÇÃO | C94: CHAPAS DE AÇO INOXIDÁVEL AISI 304 | D94: KG | E94: 9.6 | H94: 34 | I94: =E94*H94 -> 326.4
A95: SINAPI | B95: 131 | C95: ADESIVO ESTRUTURAL A BASE DE RESINA EPOXI, BICOMPONENTE, PASTOSO (TIXOTROPICO) | D95: KG | E95: 0.6 | H95: 54.06 | I95: =E95*H95 -> 32.436
A96: SUB-TOTAL | I96: =SUM(I94:I95) -> 358.836
A97: TOTAL - R$ | I97: =I96 -> 358.836
A98: BDI % | I98: 1
A99: TOTAL DO SERVIÇO - R$ | I99: =I97*I98 -> 358.836
A101: COMPOSIÇÃO DE PREÇO UNITÁRIO | I101: CPU007
A102: DESCRIÇÃO DO SERVIÇO | H102: DATA BASE: | I102: 2024-07-01
A103: REVESTIMENTO CERÂMICO PARA PISO COM PLACAS TIPO ESMALTADA DE DIMENSÕES 45x45cm COM ARGAMASSA AC III | H103: UNIDADE: | I103: m²
A104: MATERIAL
A105: BASE | B105: CÓDIGO | C105: DISCRIMINAÇÃO | D105: UNI | E105: QUANT. | H105: P.UNIT. | I105: P.TOTAL
A106: Sinapi | B106: 37596 | C106: ARGAMASSA COLANTE TIPO AC III E | D106: KG | E106: 9.1325 | H106: 2.47 | I106: =E106*H106 -> 22.557275
A107: Sinapi | B107: 1287 | C107: PISO EM CERAMICA ESMALTADA EXTRA, COR LISA, PEI MAIOR OU IGUAL A 4, FORMATO MENOR OU IGUAL A 5 CM2 | D107: m² | E107: 1.1136 | H107: 29.04 | I107: =E107*H107 -> 32.338944
A108: Sinapi | B108: 34357 | C108: REJUNTE CIMENTÍCIO, QUALQUER COR | D108: KG | E108: 0.188 | H108: 4.11 | I108: =E108*H108 -> 0.77268
A109: SUB-TOTAL | I109: =SUM(I106:I108) -> 55.668899
A110: MÃO DE OBRA
A111: BASE | B111: CÓDIGO | C111: DISCRIMINAÇÃO | D111: UNI | E111: QUANT. | H111: P.UNIT. | I111: P.TOTAL
A112: SINAPI | B112: 88317 | C112: AZULEJISTA OU LADRILHISTA COM ENCARGOS COMPLEMENTARES | D112: h | E112: 0.8064 | H112: 32.07 | I112: =E112*H112 -> 25.861248
A113: SINAPI | B113: 88316 | C113: SERVENTE COM ENCARGOS COMPLEMENTARES | D113: h | E113: 0.2068 | H113: 23.75 | I113: =E113*H113 -> 4.9115
A114: SUB-TOTAL | I114: =SUM(I112:I113) -> 30.772748
A115: PRODUÇÃO DA EQUIPE | D115: 1 | E115: CUSTO | I115: =I114+I109 -> 86.441647
A116: TOTAL - R$ | I116: =I115/D115 -> 86.441647
A117: BDI % | I117: 1
A118: TOTAL DO SERVIÇO - R$ | I118: =I116*I117 -> 86.441647
A120: COMPOSIÇÃO DE PREÇO UNITÁRIO | I120: CPU008
A121: DESCRIÇÃO DO SERVIÇO | H121: DATA BASE: | I121: 2024-07-01
A122: CHAPA XADREZ EM ALUMINIO PARA PISO e:3mm, INCLUSO REBITE PARA FIXAÇÃO - MATERIAL | H122: UNIDADE: | I122: m
A123: MATERIAL
A124: BASE | B124: CÓDIGO | C124: DISCRIMINAÇÃO | D124: UNI | E124: QUANT. | H124: P.UNIT. | I124: P.TOTAL
A125: SINAPI | B125: 1337 | C125: CHAPA DE ACO XADREZ PARA PISOS, E = 1/4" (6,30 MM) 54,53 KG/M2 | D125: kg | E125: 38 | H125: 11.26 | I125: =E125*H125 -> 427.88
A126: SINAPI | B126: 10997 | C126: ELETRODO REVESTIDO AWS - E7018, DIAMETRO IGUAL A 4,00 MM | D126: Kg | E126: 2.88 | H126: 44 | I126: =E126*H126 -> 126.72
A127: SUB-TOTAL | I127: =SUM(I125:I126) -> 554.6
A128: BDI % | I128: 1
A129: TOTAL DO SERVIÇO - R$ | I129: =I127 -> 554.6
A132: COMPOSIÇÃO DE PREÇO UNITÁRIO | I132: CPU009
A133: DESCRIÇÃO DO SERVIÇO | H133: DATA BASE: | I133: 2024-07-01
A134: CHAPA XADREZ EM ALUMINIO PARA PISO e:3mm, INCLUSO REBITE PARA FIXAÇÃO - MÃO DE OBRA | H134: UNIDADE: | I134: m
A135: MÃO DE OBRA
A136: BASE | B136: CÓDIGO | C136: DISCRIMINAÇÃO | D136: UNI | E136: QUANT. | H136: P.UNIT. | I136: P.TOTAL
A137: SINAPI | B137: 88315 | C137: SERRALHEIRO COM ENCARGOS | D137: H | E137: 8.99 | H137: 31.13 | I137: =E137*H137 -> 279.8587
A138: SINAPI | B138: 88316 | C138: SERVENTE COM ENCARGOS COMPLEMENTARES | D138: H | E138: 6.42 | H138: 23.75 | I138: =E138*H138 -> 152.475
A139: SUB-TOTAL | I139: =SUM(I137:I138) -> 432.3337
A140: PRODUÇÃO DA EQUIPE | D140: 1 | E140: CUSTO | I140: =I139 -> 432.3337
A141: TOTAL - R$ | I141: =I140/D140 -> 432.3337
A142: TOTAL DO SERVIÇO - R$ | I142: =I140 -> 432.3337
A144: COMPOSIÇÃO DE PREÇO UNITÁRIO | I144: CPU0010
A145: DESCRIÇÃO DO SERVIÇO | H145: DATA BASE: | I145: 2024-07-01
A146: REVESTIMENTO DE PAREDES EM CHAPAS DE AÇO INOXIDÁVEL AISI 304 - CONSIDERANDO CHAPA DE 1,2mm | H146: UNIDADE: | I146: M²
A147: APENAS MÃO DE OBRA
A148: BASE | B148: CÓDIGO | C148: DISCRIMINAÇÃO | D148: UNI | E148: QUANT. | H148: P.UNIT. | I148: P.TOTAL
A149: SINAPI | B149: 88317 | C149: SOLDADOR COM ENCARGOS COMPLEMENTARES | D149: h | E149: 0.8 | H149: 32.07 | I149: =E149*H149 -> 25.656
A150: SINAPI | B150: 88315 | C150: SERRALHEIRO COM ENCARGOS COMPLEMENTARES | D150: h | E150: 0.8 | H150: 31.13 | I150: =E150*H150 -> 24.904
A151: SUB-TOTAL | I151: =SUM(I149:I150) -> 50.56
A152: PRODUÇÃO DA EQUIPE | D152: 1 | E152: CUSTO | I152: =I151 -> 50.56
A153: TOTAL - R$ | I153: =I152/D152 -> 50.56
A154: BDI % | I154: 1
A155: TOTAL DO SERVIÇO - R$ | I155: =I153*I154 -> 50.56
A157: COMPOSIÇÃO DE PREÇO UNITÁRIO | I157: CPU011
A158: DESCRIÇÃO DO SERVIÇO | H158: DATA BASE: | I158: 2024-07-01
A159: GUARDA-CORPO DE AÇO CARBONO, MONTANTES TUBULARES DE 1.1/2" ESPAÇADOS EM 0,75M, ALTURA APROXIMADA DE 0,90M, PREPARADO COM FUNDO E TINTA EPÓXI NA COR AMARELA | H159: UNIDADE: | I159: m
A160: MATERIAL
A161: BASE | B161: CÓDIGO | C161: DISCRIMINAÇÃO | D161: UNI | E161: QUANT. | H161: P.UNIT. | I161: P.TOTAL
A162: SINAPI | B162: 1332 | C162: CHAPA DE ACO GROSSA, ASTM A36, E = 3/8 " (9,53 MM) 74,69 KG/M2 | D162: KG | E162: 0,8960000 | H162: 10.02 | I162: =E162*H162 -> 8.97792
A163: SINAPI | B163: 11002 | C163: ELETRODO REVESTIDO AWS - E6013, DIAMETRO IGUAL A 2,50 MM | D163: KG | E163: 0,0650000 | H163: 42.25 | I163: =E163*H163 -> 2.74625
A164: SINAPI | B164: 11964 | C164: PARAFUSO DE ACO TIPO CHUMBADOR PARABOLT, DIAMETRO 3/8", COMPRIMENTO 75 MM | D164: UN | E164: 3,3330000 | H164: 2.54 | I164: 8.46582
A165: SINAPI | B165: 21001 | C165: TUBO ACO CARBONO COM COSTURA, NBR 5580, CLASSE L, DN = 25 MM, E = 2,65 MM, 2,02 KG/M | D165: M | E165: 1.0417 | H165: 15.84 | I165: 16.500528
A166: SINAPI | B166: 21003 | C166: TUBO ACO CARBONO COM COSTURA, NBR 5580, CLASSE L, DN = 40 MM, E = 3,0 MM, 3,34 KG/M | D166: M | E166: 3.025 | H166: 26.03 | I166: 78.74075
A167: SINAPI | B167: 100719 | C167: PINTURA COM TINTA ALQUÍDICA DE FUNDO (TIPO ZARCÃO) PULVERIZADA SOBRE PERFIL METÁLICO EXECUTADO EM FÁBRICA (POR DEMÃO). AF_01/2020_PE | D167: M2 | E167: 1.1 | H167: 12.31 | I167: 13.541
A168: SINAPI | B168: 100729 | C168: PINTURA COM TINTA EPOXÍDICA DE ACABAMENTO PULVERIZADA SOBRE PERFIL METÁLICO EXECUTADO EM FÁBRICA (POR DEMÃO). AF_01/2020_PE | D168: M2 | E168: 1.1 | H168: 22.88 | I168: 25.168
A169: SUB-TOTAL | I169: =SUM(I162:I168) -> 154.140268
A170: MÃO DE OBRA
A171: BASE | B171: CÓDIGO | C171: DISCRIMINAÇÃO | D171: UNI | E171: QUANT. | H171: P.UNIT. | I171: P.TOTAL
A172: SINAPI | B172: 88251 | C172: AUXILIAR DE SERRALHEIRO COM ENCARGOS COMPLEMENTARES | D172: H | E172: 8 | H172: 24.57 | I172: =H172*E172 -> 196.56
A173: SINAPI | B173: 88315 | C173: SERRALHEIRO COM ENCARGOS COMPLEMENTARES | D173: H | E173: 5.333333333 | H173: 31.13 | I173: =H173*E173 -> 166.0266667
A174: SUB-TOTAL | I174: =SUM(I172:I173) -> 362.5866667
A175: PRODUÇÃO DA EQUIPE | D175: 1 | E175: CUSTO | I175: =I174+I169 -> 516.7269347
A176: TOTAL - R$ | I176: =I175/D175 -> 516.7269347
A177: BDI % | I177: 1
A178: TOTAL DO SERVIÇO - R$ | I178: =I176*I177 -> 516.7269347
A180: COMPOSIÇÃO DE PREÇO UNITÁRIO | I180: CPU012
A181: DESCRIÇÃO DO SERVIÇO | H181: DATA BASE: | I181: 2024-07-01
A182: CONTAINER HIGH CUBE 40 PÉS 12,2X2,3X2,9 (COMPXLARGXALTU) | H182: UNIDADE: | I182: un
A183: MATERIAL
A184: BASE | B184: CÓDIGO | C184: DISCRIMINAÇÃO | D184: UNI | E184: QUANT. | H184: P.UNIT. | I184: P.TOTAL
A185: COTAÇÃO | B185: - | C185: CONTAINER HIGH CUBE 40 PÉS 12,2X2,3X2,9 (COMPXLARGXALTU) | D185: un | E185: 1 | H185: 18015 | I185: =E185*H185 -> 18015
I186: =E186*H186 -> 0
A187: SUB-TOTAL | I187: =SUM(I185:I186) -> 18015
A188: MÃO DE OBRA
A189: BASE | B189: CÓDIGO | C189: DISCRIMINAÇÃO | D189: UNI | E189: QUANT. | H189: P.UNIT. | I189: P.TOTAL
A190: - | B190: - | C190: - | D190: - | E190: - | H190: - | I190: -
A191: SUB-TOTAL | I191: =SUM(I190:I190) -> 0
A192: PRODUÇÃO DA EQUIPE | D192: 1 | E192: CUSTO | I192: =I191+I187 -> 18015
A193: TOTAL - R$ | I193: =I192/D192 -> 18015
A194: BDI % | I194: 1
A195: TOTAL DO SERVIÇO - R$ | I195: =I193*I194 -> 18015
A198: COMPOSIÇÃO DE PREÇO UNITÁRIO | I198: CPU013
A199: DESCRIÇÃO DO SERVIÇO | H199: DATA BASE: | I199: 2024-07-01
A200: FORNECIMENTO E INSTALAÇÃO DE SUPORTE PARA CAIXA D'ÁGUA EM METALON | H200: UNIDADE: | I200: un
A201: MATERIAL
A202: BASE | B202: CÓDIGO | C202: DISCRIMINAÇÃO | D202: UNI | E202: QUANT. | H202: P.UNIT. | I202: P.TOTAL
A203: ORSE | B203: 08851/ORSE | C203: Tubo industrial, em aço, quadrado, dim 50 x 50 mm, e=2,00mm, 4,476 kg/m | D203: m | E203: =5.4*1.1 -> 5.94 | H203: 73.4 | I203: =E203*H203 -> 435.996
A204: ORSE | B204: 10600/ORSE | C204: Chapa aço fina preta lisa nº14, e=2,00mm (16,0 kg/m2) | D204: m2 | E204: =2.427*1.075*1.1 -> 2.8699275 | H204: 142.56 | I204: =E204*H204 -> 409.1368644
A205: SINAPI | B205: 100719 | C205: PINTURA COM TINTA ALQUÍDICA DE FUNDO (TIPO ZARCÃO) PULVERIZADA SOBRE PERFIL METÁLICO EXECUTADO EM FÁBRICA (POR DEMÃO). AF_01/2020_PE | D205: m2 | E205: =SUM(E206,E203)*2 -> 22.5588 | H205: 12.31 | I205: =E205*H205 -> 277.698828
A206: ORSE | B206: 13120/ORSE | C206: Perfil Aço, UDC Enrijecido 75 x 40 x 3,43(kg/m) - SAE 1008/1012 | D206: kg | E206: =2.427*2*1.1 -> 5.3394 | H206: 15.4 | I206: =E206*H206 -> 82.22676
A207: SUB-TOTAL | I207: =SUM(I203:I206) -> 1205.058452
A208: MÃO DE OBRA
A209: BASE | B209: CÓDIGO | C209: DISCRIMINAÇÃO | D209: UNI | E209: QUANT. | H209: P.UNIT. | I209: P.TOTAL
A210: SINAPI | B210: 88251 | C210: AUXILIAR DE SERRALHEIRO COM ENCARGOS COMPLEMENTARES | D210: H | E210: =20*2 -> 40 | H210: 24.57 | I210: =H210*E210 -> 982.8
A211: SINAPI | B211: 88315 | C211: SERRALHEIRO COM ENCARGOS COMPLEMENTARES | D211: H | E211: =20*2 -> 40 | H211: 31.13 | I211: =H211*E211 -> 1245.2
A212: SUB-TOTAL | I212: =SUM(I210:I211) -> 2228
A213: PRODUÇÃO DA EQUIPE | D213: 1 | E213: CUSTO | I213: =I212+I207 -> 3433.058452
A214: TOTAL - R$ | I214: =I213/D213 -> 3433.058452
A215: BDI % | I215: 1
... 1 more rows
